bitfinex-derivatives/quotes_SOLF0:USTF0_20260213
["timestamp","ask_amount","ask_price","bid_price","bid_amount"]
[1771013874699,10.6783,84.33,84.281,10.6843]
[1771013874906,10.6783,84.33,84.282,11.67995465]
[1771013875805,10.6791,84.324,84.287,11.68606652]
[1771013876206,10.6791,84.324,84.218,180.0]
[1771013876207,8.70054193,84.34,84.262,11.68606652]
[1771013876596,8.70054193,84.34,84.278,11.68606652]
[1771013877607,10.6786,84.327,84.281,11.68549779]
[1771013878018,10.6764,84.344,84.295,11.68549779]
[1771013879615,10.6764,84.344,84.3,11.68546332]
[1771013880915,10.6764,84.344,84.302,11.68546332]
[1771013881512,8.70054193,84.34,84.285,11.67326777]
[1771013882116,8.70054193,84.32,84.266,11.67326777]
[1771013882321,8.70054193,84.32,84.224,11.67326777]
[1771013883315,10.6825,84.297,84.256,11.68394559]
[1771013883618,8.70054193,84.32,84.256,11.68394559]
[1771013884413,10.6815,84.304,84.258,22.37114559]
[1771013885313,10.6815,84.304,84.259,11.65889098]
[1771013886321,8.70054193,84.32,84.222,11.65889098]
[1771013886518,102.82,84.319,84.222,11.65889098]
[1771013887216,102.82,84.319,84.221,124.2]
[1771013887217,10.6844,84.281,84.234,11.67984589]
[1771013887811,10.6844,84.281,84.179,35.62]
[1771013887812,8.70054193,84.28,84.22,11.67984589]
[1771013888015,8.70054193,84.26,84.174,11.67984589]
[1771013888217,8.70054193,84.28,84.191,11.67984589]
[1771013889016,8.70054193,84.28,84.219,11.67984589]
[1771013889607,8.70054193,84.28,84.193,94.58]
[1771013889608,10.6865,84.265,84.221,11.77584374]
[1771013890633,10.6853,84.274,84.221,11.77584374]
[1771013891825,10.6853,84.274,84.224,11.80331857]
[1771013892922,10.6843,84.282,84.225,10.6915]
[1771013893223,10.6843,84.282,84.226,11.80331857]
[1771013893816,10.6843,84.282,84.193,94.58]
[1771013893817,10.6827,84.294,84.244,11.78955431]
[1771013894724,10.6827,84.294,84.245,11.78955431]
[1771013897627,8.69862421,84.3,84.245,11.78955431]
[1771013897826,8.69862421,84.3,84.248,11.81821446]
[1771013898721,10.6822,84.299,84.248,11.81821446]
[1771013899726,10.6832,84.291,84.248,11.81821446]
[1771013900616,10.684,84.285,84.236,10.69]
[1771013900815,8.69862421,84.3,84.237,11.8049244]
[1771013901014,10.6829,84.293,84.244,11.8049244]
[1771013901226,8.69862421,84.3,84.244,11.8049244]
[1771013901927,8.69862421,84.3,84.208,11.81525974]
[1771013902821,10.6846,84.28,84.227,11.81525974]
[1771013903020,8.69862421,84.3,84.227,11.81525974]
[1771013903630,10.6845,84.281,84.229,11.81796554]
[1771013904426,8.69862421,84.28,84.229,11.81796554]
[1771013904626,8.69862421,84.3,84.229,11.81796554]
[1771013905130,3.24722048,84.28,84.229,11.81796554]
[1771013905320,3.24722048,84.27,84.229,11.81796554]
[1771013905719,3.24722048,84.28,84.231,11.81871403]
[1771013906330,3.24722048,84.29,84.231,11.81871403]
[1771013907633,3.24722048,84.28,84.237,11.83512476]
[1771013908822,3.24722048,84.29,84.24,15.08234524]
[1771013909028,3.24722048,84.29,84.241,11.83512476]
[1771013909221,3.24722048,84.29,84.242,10.6893]
[1771013909428,3.24722048,84.29,84.243,11.83675534]
[1771013909729,21.71026485,84.361,84.212,21.3861]
[1771013909730,3.24722048,84.31,84.265,11.83675534]
[1771013909931,10.6813,84.306,84.265,11.83675534]
[1771013910428,10.68,84.316,84.265,11.83675534]
[1771013911334,10.68,84.316,84.269,11.8453088]
[1771013912041,10.68,84.316,84.23,21.3817]
[1771013912042,3.24722048,84.32,84.276,11.8453088]
[1771013912233,3.24722048,84.32,84.27,3.24722048]
[1771013912234,10.679,84.324,84.281,11.8453088]
[1771013913032,3.24722048,84.33,84.281,11.8453088]
[1771013913238,3.24722048,84.34,84.291,11.83602904]
[1771013913538,14.56249314,84.397,84.249,21.3769]
[1771013913539,10.83908572,84.39,84.303,11.83602904]
[1771013913728,3.24722048,84.36,84.303,11.83602904]
[1771013914727,10.6747,84.358,84.307,11.83602904]
[1771013915232,10.6737,84.366,84.311,11.87938563]
[1771013915429,8.6814193,84.38,84.311,11.87938563]
[1771013915631,94.6,84.387,84.311,11.87938563]
[1771013915830,10.6724,84.376,84.324,11.87938563]
[1771013916236,8.6814193,84.38,84.324,11.87938563]
[1771013916435,8.6814193,84.38,84.225,166.3126]
[1771013916436,10.6757,84.35,84.293,10.6828]
[1771013916640,8.6814193,84.36,84.294,11.87938563]
[1771013917337,10.6774,84.337,84.294,11.87938563]
[1771013917935,8.6814193,84.36,84.294,11.87938563]
[1771013919235,10.6743,84.362,84.307,11.96670285]
[1771013919834,10.6731,84.371,84.31,11.96670285]
[1771013920538,10.6739,84.364,84.31,11.96670285]
[1771013921734,10.6751,84.355,84.31,11.96670285]
[1771013922352,8.6814193,84.38,84.31,11.96670285]
[1771013922545,8.6814193,84.39,84.311,11.97855891]
[1771013923146,10.6728,84.373,84.319,11.97855891]
[1771013924046,10.6728,84.373,84.3,8.6814193]
[1771013924047,10.6717,84.382,84.333,11.96925496]
[1771013924248,8.6814193,84.39,84.333,11.96925496]
[1771013924844,10.6715,84.383,84.333,11.96925496]
[1771013925950,10.6728,84.373,84.333,11.96925496]
[1771013927246,10.6718,84.381,84.333,11.96925496]
[1771013929656,10.6726,84.374,84.333,11.96925496]
[1771013930264,10.6717,84.382,84.333,11.96925496]
[1771013931660,10.6726,84.375,84.333,11.96925496]
[1771013932266,8.6814193,84.39,84.333,11.96925496]
[1771013934471,10.6736,84.367,84.333,11.96925496]
[1771013935165,10.6744,84.361,84.333,11.96925496]
[1771013935363,3.24014389,84.35,84.319,11.88433577]
[1771013935558,3.24014389,84.36,84.319,11.88433577]
[1771013936762,10.6745,84.359,84.319,11.88433577]
[1771013937867,3.24014389,84.36,84.32,11.92920487]
[1771013939769,13.91454389,84.36,84.32,11.92920487]
[1771013942771,3.24014389,84.35,84.32,11.92920487]
[1771013942972,3.24014389,84.36,84.32,11.92920487]
[1771013943373,10.6746,84.359,84.32,11.92920487]
[1771013945874,10.6754,84.353,84.32,11.92920487]
[1771013946067,3.24014389,84.35,84.32,11.92920487]
[1771013946668,13.91464389,84.36,84.32,11.92920487]
[1771013946970,3.24014389,84.36,84.32,11.92920487]
[1771013948868,3.24014389,84.36,84.321,11.94045622]
[1771013949669,3.24014389,84.37,84.321,11.94045622]
[1771013950065,3.24014389,84.36,84.321,11.94045622]
[1771013950865,3.24014389,84.36,84.323,11.91765795]
[1771013952880,3.24039636,84.36,84.325,11.91644367]
[1771013953877,3.24039636,84.36,84.329,10.6783]
[1771013954073,10.6721,84.378,84.33,11.90606091]
[1771013954274,3.24039636,84.37,84.33,11.90606091]
[1771013954468,8.55192428,84.391,84.33,3.24039636]
[1771013954675,3.24039636,84.39,84.341,11.90606091]
[1771013954873,3.24039636,84.4,84.341,11.90606091]
[1771013955179,3.24039636,84.4,84.351,11.90606091]
[1771013955381,3.24039636,84.42,84.371,11.90376491]
[1771013956069,3.24039636,84.4,84.356,11.90376491]
[1771013956378,3.24039636,84.39,84.356,11.90376491]
[1771013957073,3.24039636,84.4,84.356,11.90376491]
[1771013957878,10.6696,84.398,84.356,11.90376491]
[1771013958378,3.24039636,84.41,84.366,11.91703718]
[1771013958571,3.24039636,84.42,84.366,11.91703718]
[1771013959077,10.6682,84.409,84.366,11.91703718]
[1771013959476,3.24039636,84.41,84.366,11.91703718]
[1771013960476,3.24039636,84.43,84.381,12.05630689]
[1771013960673,3.24039636,84.43,84.318,22.03790284]
[1771013960674,10.83360798,84.458,84.391,12.05630689]
[1771013960880,21.71026485,84.492,84.391,12.05630689]
[1771013960881,3.24039636,84.44,84.391,12.05630689]
[1771013962279,10.6634,84.448,84.391,12.05630689]
[1771013962480,10.6634,84.448,84.4,3.24039636]
[1771013962683,10.6634,84.448,84.401,12.04278771]
[1771013964087,3.24039636,84.45,84.401,12.04278771]
[1771013964479,3.24039636,84.45,84.354,112.38]
[1771013964480,3.24039636,84.43,84.384,12.02048775]
[1771013965490,10.6657,84.429,84.384,12.02048775]
[1771013965882,3.24039636,84.43,84.385,12.05000845]
[1771013967488,10.6659,84.428,84.385,12.05000845]
[1771013968281,3.24039636,84.43,84.385,12.05000845]
[1771013968990,10.6667,84.422,84.385,12.05000845]
[1771013969786,13.90599636,84.43,84.385,12.05000845]
[1771013972495,10.6639,84.443,84.393,12.08156955]
[1771013972791,3.24039636,84.43,84.393,12.08156955]
[1771013973388,3.24039636,84.45,84.403,12.08344825]
[1771013974194,3.24039636,84.45,84.408,12.08344825]
[1771013975490,3.24039636,84.44,84.408,12.08344825]
[1771013977099,3.24039636,84.44,84.411,12.08044897]
[1771013977298,3.24039636,84.45,84.411,12.08044897]
[1771013977800,13.90339636,84.45,84.411,12.08044897]
[1771013978299,3.24039636,84.44,84.411,12.08044897]
[1771013979301,3.24039636,84.43,84.395,12.10967877]
[1771013980297,13.90599636,84.43,84.395,12.10967877]
[1771013983501,10.6645,84.439,84.396,12.09042971]
[1771013986394,21.3187,84.48,84.398,12.07160209]
[1771013986598,3.24039636,84.46,84.411,12.07160209]
[1771013986801,3.24039636,84.46,84.418,10.667]
[1771013987003,3.24039636,84.47,84.421,12.07160209]
[1771013987806,10.6613,84.464,84.421,12.07160209]
[1771013990506,10.662,84.458,84.421,12.07160209]
[1771013998202,3.24039636,84.48,84.431,12.09336335]
[1771013998403,11.86,84.533,84.379,166.0087]
[1771013998404,8.53804282,84.509,84.441,12.09336335]
[1771013998606,3.24039636,84.52,84.451,12.09336335]
[1771013998813,3.24039636,84.52,84.461,12.09336335]
[1771013999110,94.54,84.532,84.481,12.09336335]
[1771013999111,3.24039636,84.53,84.481,12.09336335]
[1771013999700,3.24039636,84.52,84.483,10.6587]
[1771014000312,3.24039636,84.5,84.461,12.05402036]
[1771014000504,3.24039636,84.52,84.461,12.05402036]
[1771014000706,3.24039636,84.51,84.461,12.05402036]
[1771014001813,3.24039636,84.51,84.465,22.71652164]
[1771014002213,3.24039636,84.51,84.45,3.24039636]
[1771014002214,3.24039636,84.51,84.466,12.05552164]
[1771014002514,13.89459636,84.52,84.478,10.6594]
[1771014003406,3.24039636,84.51,84.471,12.03070168]
[1771014004214,3.24039636,84.48,84.445,12.03070168]
[1771014005308,3.24039636,84.48,84.44,10.6642]
[1771014006617,3.24039636,84.48,84.446,10.6635]
[1771014007604,3.24039636,84.48,84.441,12.07486902]
[1771014008521,3.24039636,84.48,84.444,10.6637]
[1771014009312,3.24039636,84.48,84.441,12.07486902]
[1771014009313,3.24039636,84.46,84.427,12.0777708]
[1771014010714,10.9075972,84.513,84.427,12.0777708]
[1771014010910,3.24039636,84.48,84.427,12.0777708]
[1771014011518,10.6601,84.474,84.428,10.6657]
[1771014011719,10.6601,84.474,84.429,12.11188227]
[1771014011919,3.24039636,84.47,84.429,12.11188227]
[1771014012921,3.2318843,84.47,84.429,12.11188227]
[1771014014313,3.2318843,84.47,84.432,12.06858086]
[1771014014714,10.6609,84.467,84.432,12.06858086]
[1771014016212,3.2318843,84.47,84.432,12.06858086]
[1771014017718,10.6607,84.469,84.432,12.06858086]
[1771014017916,3.2318843,84.46,84.411,12.08927287]
[1771014018308,10.6622,84.457,84.412,10.6678]
[1771014018512,10.6622,84.457,84.413,12.08927287]
[1771014019622,3.2318843,84.46,84.413,12.08927287]
[1771014020214,3.2318843,84.46,84.418,12.12438927]
[1771014020923,3.2318843,84.46,84.421,10.6665]
[1771014021122,3.2318843,84.46,84.421,22.79088927]
[1771014021319,3.2318843,84.46,84.421,12.12438927]
[1771014022121,3.2318843,84.46,84.391,460.29143979]
[1771014022122,3.2318843,84.46,84.408,12.09268165]
[1771014022318,3.2318843,84.44,84.408,12.09268165]
[1771014022518,3.2318843,84.45,84.408,12.09268165]
[1771014023724,10.6622,84.457,84.409,10.6681]
[1771014023914,3.2318843,84.45,84.41,12.0863791]
[1771014024320,10.6622,84.457,84.41,15.3182634]
[1771014024519,10.6622,84.457,84.411,12.0863791]
[1771014025024,10.6612,84.465,84.42,3.2318843]
[1771014025225,3.2318843,84.47,84.411,12.0863791]
[1771014025530,3.2318843,84.47,84.421,12.11050318]
[1771014025929,21.3161,84.49,84.391,460.29143979]
[1771014025930,3.2318843,84.49,84.441,12.11050318]
[1771014026226,3.2318843,84.48,84.441,12.11050318]
[1771014027929,3.2318843,84.49,84.441,12.11050318]
[1771014028128,3.2318843,84.47,84.415,12.09361961]
[1771014028327,3.2318843,84.46,84.415,12.09361961]
[1771014029730,13.8936843,84.46,84.419,10.6669]
[1771014030036,13.8936843,84.46,84.42,12.11735083]
[1771014030220,3.2318843,84.47,84.41,3.2318843]
[1771014030419,3.2318843,84.47,84.42,3.2318843]
[1771014031727,10.661,84.466,84.42,3.2318843]
[1771014032130,10.661,84.466,84.421,6.11645476]
[1771014032330,10.6618,84.46,84.421,6.11645476]
[1771014032531,3.2318843,84.46,84.421,6.11645476]
[1771014033734,10.6622,84.457,84.421,6.11645476]
[1771014035423,3.2318843,84.46,84.421,16.78305476]
[1771014035729,10.6611,84.466,84.422,6.16263853]
[1771014037830,10.6618,84.46,84.422,6.16263853]
[1771014038330,13.8936843,84.46,84.422,6.16263853]
[1771014038935,3.2318843,84.46,84.422,6.16263853]
[1771014042334,10.662,84.458,84.422,6.16263853]
[1771014044839,3.2318843,84.46,84.422,6.16263853]
[1771014045828,10.662,84.459,84.422,6.16263853]
[1771014046238,3.2318843,84.46,84.422,6.16263853]
[1771014047739,13.8936843,84.46,84.422,6.16263853]
[1771014049638,3.2318843,84.46,84.424,6.03090775]
[1771014050745,13.8936843,84.46,84.424,6.03090775]
[1771014050943,8.52634187,84.487,84.43,3.2318843]
[1771014051141,3.2318843,84.48,84.431,6.03090775]
[1771014052247,3.2318843,84.48,84.438,6.0176388]
[1771014052642,3.2318843,84.47,84.438,6.0176388]
[1771014053446,3.2318843,84.47,84.426,5.97031564]
[1771014053648,10.6615,84.463,84.426,5.97031564]
[1771014053942,3.2318843,84.46,84.426,5.97031564]
[1771014054144,10.6625,84.455,84.415,10.6673]
[1771014054336,10.6625,84.455,84.416,5.97031564]
[1771014054541,3.2318843,84.46,84.416,5.97031564]
[1771014054941,3.2318843,84.46,84.424,10.6662]
[1771014055144,3.2318843,84.46,84.416,5.97031564]
[1771014056742,3.2318843,84.46,84.418,6.036609]
[1771014056743,10.6621,84.458,84.418,6.036609]
[1771014057347,3.2318843,84.46,84.418,16.703509]
[1771014057549,3.2318843,84.46,84.419,6.01419114]
[1771014058945,3.2318843,84.46,84.421,6.01419114]
[1771014059144,10.6612,84.465,84.421,6.01419114]
[1771014059350,3.2318843,84.46,84.421,6.01419114]
[1771014060350,3.2318843,84.46,84.424,6.01246923]
[1771014060550,3.2318843,84.47,84.424,6.01246923]
[1771014061154,10.6608,84.468,84.424,6.01246923]
[1771014061341,8.52634187,84.487,84.441,5.94291738]
[1771014061547,3.2318843,84.5,84.451,5.94291738]
[1771014061940,10.6558,84.508,84.462,10.6614]
[1771014062147,10.6558,84.508,84.463,5.94291738]
[1771014062743,10.6558,84.508,84.45,3.2318843]
[1771014062744,10.6547,84.516,84.465,5.94291738]
[1771014063351,10.6547,84.516,84.471,5.89198455]
[1771014063658,10.6535,84.526,84.481,5.89198455]
[1771014064152,3.2318843,84.52,84.481,5.89198455]
[1771014064456,3.2318843,84.5,84.461,5.89198455]
[1771014064658,3.2318843,84.51,84.461,5.89198455]
[1771014064956,3.2318843,84.5,84.463,5.89198455]
[1771014066150,13.8873843,84.51,84.463,5.89198455]
[1771014066559,13.8873843,84.51,84.465,5.99887363]
[1771014066956,3.2318843,84.51,84.467,5.99887363]
[1771014068755,3.2318843,84.51,84.473,6.04788031]
[1771014068957,10.6545,84.518,84.473,6.04788031]
[1771014069152,3.2318843,84.51,84.473,6.04788031]
[1771014069659,3.2318843,84.5,84.451,6.00791742]
[1771014071255,10.6553,84.511,84.459,10.6618]
[1771014071460,3.2318843,84.5,84.459,16.6917624]
[1771014071866,10.6563,84.504,84.459,16.6917624]
[1771014072449,3.2318843,84.49,84.446,6.0299624]
[1771014072860,3.23072233,84.49,84.446,6.0299624]
[1771014073059,13.88992233,84.48,84.433,6.0299624]
[1771014073962,10.6601,84.474,84.433,6.0299624]
[1771014076358,3.23072233,84.47,84.433,6.0299624]
[1771014076564,10.6608,84.468,84.433,6.0299624]
[1771014077160,8.57343313,84.503,84.433,6.0299624]
[1771014077353,3.23072233,84.48,84.433,6.0299624]
[1771014078464,3.23072233,84.49,84.433,6.0299624]
[1771014078769,10.6585,84.486,84.442,5.99568875]
[1771014081164,3.23072233,84.49,84.444,16.65320782]
[1771014081366,3.23072233,84.49,84.445,5.98950782]
[1771014082970,3.23072233,84.49,84.448,10.6632]
[1771014083969,3.23072233,84.5,84.456,5.98998423]
[1771014084967,3.23072233,84.5,84.46,10.6617]
[1771014085170,3.23072233,84.5,84.461,5.98998423]
[1771014086362,3.23072233,84.51,84.464,5.99552657]
[1771014086665,10.6549,84.515,84.464,5.99552657]
[1771014086863,3.23072233,84.51,84.464,5.99552657]
[1771014087458,3.23072233,84.51,84.472,5.99574731]
[1771014087672,3.23072233,84.52,84.472,5.99574731]
[1771014088367,10.6544,84.518,84.473,5.99574731]
[1771014089365,3.23072233,84.51,84.473,5.99574731]
[1771014089769,3.23072233,84.5,84.46,5.99676688]
[1771014095373,3.23072233,84.5,84.468,6.02535011]
[1771014095569,3.23072233,84.51,84.468,6.02535011]
[1771014096879,10.6564,84.503,84.468,6.02535011]
[1771014098472,3.23072233,84.51,84.468,6.02535011]
[1771014100371,3.23072233,84.5,84.468,16.68605011]
[1771014100577,3.23072233,84.5,84.468,6.02535011]
[1771014104476,10.6563,84.503,84.468,6.02535011]
[1771014104780,13.88622233,84.51,84.47,6.25862049]
[1771014105077,3.23072233,84.52,84.47,6.25862049]
[1771014105281,10.6554,84.511,84.473,6.25949298]
[1771014105470,10.6554,84.511,84.46,3.23072233]
[1771014105471,3.23072233,84.5,84.431,6.25949298]
[1771014105671,3.23072233,84.49,84.441,6.25949298]
[1771014106381,3.23072233,84.49,84.423,22.03790284]
[1771014106382,3.23072233,84.48,84.445,6.25949298]
[1771014107982,3.23072233,84.48,84.447,6.32924565]
[1771014109389,3.23072233,84.47,84.447,6.32924565]
[1771014110291,13.89002233,84.48,84.447,6.32924565]
[1771014110992,3.23072233,84.49,84.449,6.34971555]
[1771014111393,3.23072233,84.49,84.451,6.35033831]
[1771014112093,3.23072233,84.49,84.454,6.35033831]
[1771014112592,3.23072233,84.48,84.454,6.35033831]
[1771014113891,10.93386969,84.513,84.454,6.35033831]
[1771014113892,8.56745535,84.513,84.454,6.35033831]
[1771014114190,3.23072233,84.5,84.454,6.35033831]
[1771014114792,3.23072233,84.52,84.471,6.28401499]
[1771014114993,3.23072233,84.53,84.471,6.28401499]
[1771014115792,10.6536,84.525,84.48,6.26587232]
[1771014116892,10.6536,84.525,84.482,6.26587232]
[1771014118596,3.23072233,84.52,84.484,6.29786953]
[1771014118993,3.23072233,84.53,84.484,6.29786953]
[1771014119188,3.23072233,84.54,84.496,10.6572]
[1771014119392,3.23072233,84.54,84.497,6.30432599]
[1771014119798,10.651,84.546,84.5,6.30432599]
[1771014119998,8.56745535,84.557,84.501,6.30432599]
[1771014120295,10.6481,84.569,84.523,6.30432599]
[1771014120695,8.56745535,84.585,84.523,6.30432599]
[1771014120999,3.23072233,84.59,84.542,6.30432599]
[1771014121203,3.23072233,84.58,84.542,6.30432599]
[1771014121393,3.23072233,84.6,84.553,6.28810773]
[1771014121699,3.23072233,84.57,84.531,6.28810773]
[1771014122404,3.23072233,84.59,84.541,6.28810773]
[1771014123898,3.23072233,84.56,84.527,6.38526643]
[1771014124599,8.57090107,84.606,84.527,6.38526643]
[1771014124805,3.23072233,84.58,84.534,6.38526643]
[1771014125602,3.23072233,84.57,84.534,6.38526643]
[1771014125801,3.23072233,84.56,84.523,10.6537]
[1771014126103,3.23072233,84.56,84.523,17.10887697]
[1771014129004,3.23072233,84.56,84.523,6.45517697]
[1771014129199,3.23072233,84.56,84.513,10.6549]
[1771014129404,8.55726181,84.601,84.509,6.41888888]
[1771014129405,3.23072233,84.55,84.509,6.41888888]
[1771014129607,3.23072233,84.54,84.495,6.42376877]
[1771014130204,3.23072233,84.53,84.495,6.42376877]
[1771014130396,3.23072233,84.52,84.476,6.42376877]
[1771014132811,13.88492233,84.52,84.476,6.42376877]
[1771014134001,10.93386969,84.582,84.481,6.41777393]
[1771014134307,3.23072233,84.53,84.481,6.41777393]
[1771014134504,3.23072233,84.53,84.489,6.41777393]
[1771014134902,3.22732825,84.53,84.489,6.41777393]
[1771014135402,3.22732825,84.52,84.479,10.6593]
[1771014135708,3.22732825,84.52,84.48,6.39546912]
[1771014136297,8.54132922,84.555,84.424,458.07140128]
[1771014136298,3.22732825,84.51,84.466,6.39546912]
[1771014136611,8.54132922,84.555,84.481,6.39546912]
[1771014136612,3.22732825,84.53,84.481,6.39546912]
[1771014140412,3.22732825,84.53,84.484,6.34353483]
[1771014141407,3.22732825,84.54,84.491,6.34304845]
[1771014141604,10.6519,84.539,84.491,6.34304845]
[1771014142007,3.22732825,84.53,84.491,6.34304845]
[1771014147412,3.22732825,84.53,84.492,10.6577]
[1771014147609,3.22732825,84.53,84.492,17.02225725]
[1771014148010,10.6517,84.54,84.492,6.36455725]
[1771014148011,13.87902825,84.54,84.492,6.36455725]
[1771014148515,3.22732825,84.53,84.492,6.36455725]
[1771014150516,10.6532,84.528,84.492,6.36455725]
[1771014150914,3.22732825,84.53,84.492,6.36455725]
[1771014151534,3.22732825,84.52,84.477,6.35264178]
[1771014152830,3.22732825,84.52,84.481,10.659]
[1771014153432,3.22732825,84.52,84.477,6.35264178]
[1771014153740,10.93386969,84.557,84.465,6.34847564]
[1771014153923,3.22732825,84.51,84.465,6.34847564]
[1771014154128,3.22732825,84.51,84.47,10.6605]
[1771014154326,3.22732825,84.5,84.47,10.6605]
[1771014154524,3.22732825,84.51,84.473,10.66]
[1771014155030,10.6546,84.517,84.474,6.34847564]
[1771014155232,3.22732825,84.51,84.474,6.34847564]
[1771014158534,3.22732825,84.5,84.466,10.661]
[1771014158838,3.22732825,84.5,84.462,6.35101251]
[1771014159240,3.22732825,84.5,84.464,10.6612]
[1771014160741,3.22732825,84.5,84.462,6.35101251]
[1771014164545,10.6571,84.498,84.462,6.35101251]
[1771014165238,3.22732825,84.5,84.463,6.34669924]
[1771014165640,10.6562,84.505,84.463,6.34669924]
[1771014166836,3.22732825,84.5,84.468,10.6607]
[1771014167445,3.22732825,84.5,84.468,16.9967311]
[1771014168046,3.22732825,84.51,84.473,6.3360311]
[1771014168350,3.22732825,84.52,84.473,6.3360311]
[1771014168944,8.52855227,84.533,84.481,6.3360311]
[1771014169142,3.22732825,84.53,84.481,6.3360311]
[1771014170137,100.32,84.543,84.481,6.3360311]
[1771014170338,3.22732825,84.53,84.481,6.3360311]
[1771014170541,3.22732825,84.53,84.453,21.3251]
[1771014170542,13.87912825,84.54,84.492,6.31825776]
[1771014170736,3.22732825,84.54,84.492,6.31825776]
[1771014171148,3.22732825,84.54,84.494,6.31378921]
[1771014172047,10.652,84.538,84.494,6.31378921]
[1771014174754,3.22732825,84.53,84.494,6.31378921]
[1771014176448,10.652,84.538,84.494,6.31378921]
[1771014176643,3.22732825,84.53,84.494,6.31378921]
[1771014177050,3.22732825,84.52,84.48,6.33328663]
[1771014177253,3.22732825,84.51,84.48,6.33328663]
[1771014177555,3.22732825,84.51,84.479,10.6593]
[1771014179357,3.22732825,84.54,84.495,6.33826598]
[1771014179651,3.22732825,84.53,84.495,6.33826598]
[1771014179955,3.22732825,84.53,84.497,10.6571]
[1771014180256,3.22732825,84.53,84.495,6.33826598]
[1771014180450,3.22732825,84.52,84.471,6.33826598]
[1771014181156,3.22732825,84.53,84.489,10.658]
[1771014183357,3.22732825,84.51,84.482,10.6589]
[1771014184848,3.22732825,84.52,84.482,10.6589]
[1771014187156,3.22732825,84.51,84.471,10.6603]
[1771014188563,10.6562,84.505,84.463,6.28744755]
[1771014189253,3.22732825,84.5,84.463,6.28744755]
[1771014189855,3.22732825,84.5,84.465,10.6611]
[1771014190050,10.6571,84.497,84.463,6.28744755]
[1771014190655,10.6561,84.505,84.465,6.37886393]
[1771014190961,3.22732825,84.52,84.471,6.37886393]
[1771014191162,3.22732825,84.52,84.482,6.37886393]
[1771014192062,8.55609539,84.548,84.482,6.37886393]
[1771014192365,3.22732825,84.54,84.482,6.37886393]
[1771014192564,10.6518,84.54,84.496,6.41828436]
[1771014192767,13.87912825,84.54,84.496,6.41828436]
[1771014193255,10.6525,84.534,84.498,6.41850846]
[1771014193455,3.22732825,84.53,84.481,6.41850846]
[1771014195465,3.22732825,84.53,84.497,10.657]
[1771014195663,10.6523,84.535,84.497,17.10598315]
[1771014196253,3.22732825,84.53,84.497,6.44898315]
[1771014196955,3.22755726,84.53,84.497,6.44898315]
[1771014197565,10.6531,84.529,84.497,6.44898315]
[1771014199566,3.22755726,84.53,84.497,6.44898315]
[1771014199761,94.46,84.557,84.483,10.6588]
[1771014199762,3.22755726,84.52,84.483,10.6588]
[1771014200468,8.55609539,84.54,84.483,10.6588]
[1771014200770,3.22755726,84.52,84.483,10.6588]
[1771014201173,3.22755726,84.53,84.481,6.49285112]
[1771014202757,10.6531,84.529,84.489,6.54117949]
[1771014204068,8.55609539,84.54,84.492,6.51148681]
[1771014204069,10.6523,84.536,84.492,6.51148681]
[1771014205863,10.6523,84.536,84.495,6.51399276]
[1771014214571,3.22755726,84.54,84.495,6.51399276]
[1771014215169,3.22755726,84.53,84.495,6.51399276]
[1771014216275,10.652,84.538,84.495,6.51399276]
[1771014219875,10.6511,84.545,84.498,6.58170805]
[1771014220880,10.6511,84.545,84.502,6.58170805]
[1771014221475,3.22755726,84.54,84.502,6.58170805]
[1771014221975,10.652,84.538,84.502,6.58170805]
[1771014223482,3.22755726,84.54,84.504,10.6561]
[1771014224375,3.22755726,84.54,84.505,6.57296539]
[1771014226182,3.22755726,84.54,84.507,10.6557]
[1771014226382,3.22755726,84.55,84.508,6.59445854]
[1771014226582,99.84,84.556,84.51,3.22755726]
[1771014226886,3.22755726,84.56,84.521,10.654]
[1771014227084,3.22755726,84.56,84.522,6.59445854]
[1771014227383,3.22755726,84.57,84.522,6.59445854]
[1771014228078,3.22755726,84.56,84.522,6.59445854]
[1771014228784,3.22755726,84.56,84.524,6.57482938]
[1771014229688,100.16,84.577,84.536,6.64125276]
[1771014229985,3.22755726,84.58,84.538,6.64125276]
[1771014230189,3.22755726,84.59,84.541,6.64125276]
[1771014230792,3.22755726,84.58,84.541,6.64125276]
[1771014231193,3.22755726,84.56,84.516,10.6546]
[1771014231389,3.22755726,84.56,84.517,6.59583853]
[1771014232693,3.22755726,84.56,84.529,10.653]
[1771014233295,3.22755726,84.57,84.529,10.653]
[1771014233603,3.22755726,84.57,84.481,94.44]
[1771014233604,3.22755726,84.59,84.541,6.69171191]
[1771014234311,11.8058162,84.6,84.557,10.6494]
[1771014234494,3.22755726,84.6,84.553,6.69171191]
[1771014234892,3.22755726,84.59,84.553,6.69171191]
[1771014235093,3.22755726,84.64,84.58,3.22755726]
[1771014235296,34.05078791,84.676,84.59,3.22755726]
[1771014235502,34.05078791,84.649,84.6,3.22755726]